bitfinex/quotes_ETHUSD_20241003
["timestamp","ask_amount","ask_price","bid_price","bid_amount"]
[1727974505753,4.29652,2327.5,2327.2,0.8231]
[1727974505959,4.29652,2327.5,2327.3,0.512024]
[1727974506146,8.59306,2327.5,2327.4,0.55]
[1727974506326,4.29652,2327.5,2327.3,0.55]
[1727974506955,8.5931,2327.5,2327.3,0.55]
[1727974507134,8.5931,2327.5,2327.3,1.117028]
[1727974507339,4.29664,2327.4,2327.3,1.117028]
[1727974507567,4.29664,2327.4,2327.3,0.55]
[1727974507768,4.29659,2327.5,2327.3,0.55]
[1727974507935,8.59317,2327.5,2327.3,0.55]
[1727974508263,4.29682,2327.3,2326.9,0.8161]
[1727974508476,4.29715,2327.2,2327.0,0.55]
[1727974508968,4.29719,2327.1,2327.0,0.55]
[1727974509172,4.29715,2327.2,2327.0,0.55]
[1727974509379,4.29652,2327.5,2327.2,0.55]
[1727974509665,4.29652,2327.5,2327.4,1.3661]
[1727974509871,4.29583,2327.9,2327.5,0.55]
[1727974510037,4.29563,2328.0,2327.7,0.55]
[1727974510237,0.7703,2328.5,2327.9,1.331]
[1727974510576,0.7703,2328.5,2328.1,4.84527]
[1727974510577,0.44862107,2328.5,2328.1,4.84527]
[1727974510868,0.44862107,2328.5,2327.8,5.12456717]
[1727974510869,4.29387,2328.9,2328.4,4.29474]
[1727974511074,4.2937,2329.0,2328.6,0.7813]
[1727974511229,4.29361,2329.1,2328.7,0.55]
[1727974511439,4.29361,2329.1,2328.7,1.112571]
[1727974511641,8.58789,2328.9,2328.7,0.55]
[1727974511828,4.29405,2328.8,2328.7,0.55]
[1727974512028,4.29444,2328.6,2328.4,0.55]
[1727974512229,0.7521,2329.0,2328.3,0.7841]
[1727974512230,4.29461,2328.5,2328.3,0.7841]
[1727974512553,4.29461,2328.5,2327.6,6.02411379]
[1727974512554,4.29548,2328.1,2327.9,0.7841]
[1727974512849,4.29548,2328.1,2327.9,1.292117]
[1727974513167,4.29553,2328.0,2327.6,0.7863]
[1727974514391,4.2959,2327.8,2327.6,0.7863]
[1727974514563,4.29619,2327.7,2327.3,5.14036462]
[1727974514731,4.2963,2327.6,2327.3,1.240818]
[1727974514931,4.29609,2327.7,2327.3,1.240818]
[1727974515132,4.29609,2327.7,2327.4,0.9834618]
[1727974515677,8.59204,2327.8,2327.4,0.9834618]
[1727974515859,4.29597,2327.8,2327.4,0.9834618]
[1727974516062,4.29619,2327.7,2327.5,0.55]
[1727974516368,4.29627,2327.6,2327.5,0.55]
[1727974516538,4.29619,2327.7,2327.4,0.55]
[1727974516892,4.29594,2327.8,2327.4,5.406836]
[1727974517173,4.29592,2327.8,2327.4,5.406836]
[1727974517328,4.29586,2327.9,2327.4,1.110296]
[1727974517533,8.59167,2327.9,2327.6,0.55]
[1727974517742,8.59051,2328.2,2327.6,0.55]
[1727974517970,4.29542,2328.1,2327.8,0.55]
[1727974518185,4.29542,2328.1,2327.6,4.84625]
[1727974518658,4.29542,2328.1,2327.8,0.55]
[1727974518896,4.29542,2328.1,2328.0,0.55]
[1727974520365,4.29584,2327.9,2327.4,4.29655]
[1727974520565,4.2959,2327.8,2327.4,4.29655]
[1727974520764,4.29543,2328.1,2327.6,4.29619]
[1727974521069,4.2953,2328.2,2327.5,1.68093]
[1727974521070,4.29529,2328.2,2327.5,1.68093]
[1727974521266,4.29555,2328.0,2327.6,4.29616]
[1727974521602,4.29491,2328.4,2328.0,0.55]
[1727974521926,4.29383,2329.0,2328.4,0.55]
[1727974522209,4.29383,2329.0,2328.6,0.55]
[1727974522210,4.29387,2328.9,2328.6,0.55]
[1727974522759,4.29387,2328.9,2328.3,5.11005]
[1727974522760,4.29407,2328.8,2328.4,0.55]
[1727974522967,4.29364,2329.1,2328.4,4.84467]
[1727974523210,4.294,2328.9,2328.6,0.55]
[1727974523524,4.29413,2328.8,2328.6,1.04305472]
[1727974523799,4.2939,2328.9,2328.6,1.04305472]
[1727974524176,4.29327,2329.3,2328.9,0.55]
[1727974524587,5.08212,2329.5,2329.1,0.55]
[1727974524588,9.375,2329.5,2329.1,0.55]
[1727974524790,4.29296,2329.4,2329.1,0.55]
[1727974524993,4.29296,2329.4,2329.0,0.55]
[1727974525192,4.29296,2329.4,2329.0,0.61155848]
[1727974525777,4.2933,2329.3,2328.9,0.55]
[1727974525978,4.29243,2329.7,2328.9,0.55]
[1727974526227,4.29316,2329.3,2328.9,4.84385]
[1727974526531,4.29331,2329.2,2329.1,0.55]
[1727974527950,0.7879,2329.2,2328.5,0.8081]
[1727974528119,8.58832,2328.8,2328.5,0.8081]
[1727974528487,4.2943,2328.7,2328.5,0.8081]
[1727974528724,4.2943,2328.7,2328.3,4.29497]
[1727974529029,4.2945,2328.6,2328.2,5.10315]
[1727974529182,0.7879,2329.1,2327.7,0.8081]
[1727974529389,8.58983,2328.4,2327.9,4.2956]
[1727974529627,4.29508,2328.3,2327.9,5.235549]
[1727974529931,4.29487,2328.4,2327.9,5.235549]
[1727974530094,4.29517,2328.2,2327.9,0.939949]
[1727974530295,4.29446,2328.6,2328.0,0.51851913]
[1727974530296,4.295,2328.3,2328.0,0.51851913]
[1727974530484,4.295,2328.3,2327.9,0.55]
[1727974530685,4.295,2328.3,2327.9,4.8457]
[1727974531180,4.29489,2328.4,2327.9,4.8457]
[1727974531625,4.29511,2328.3,2327.8,4.29582]
[1727974531925,4.29525,2328.2,2327.8,4.29587]
[1727974532086,8.59009,2328.3,2327.8,5.235872]
[1727974532286,4.29548,2328.1,2327.8,0.940002]
[1727974532492,4.2951,2328.3,2327.8,5.235892]
[1727974532694,4.2951,2328.3,2327.9,4.9000892]
[1727974532918,4.29472,2328.5,2328.0,0.55]
[1727974533119,8.58946,2328.5,2328.0,4.84544]
[1727974533305,4.29489,2328.4,2328.0,4.84544]
[1727974533636,4.29489,2328.4,2328.0,5.89193838]
[1727974533783,4.29482,2328.4,2328.0,5.89193838]
[1727974534220,4.29499,2328.3,2328.0,1.59649838]
[1727974534723,4.29482,2328.4,2328.0,1.59649838]
[1727974535197,4.29482,2328.4,2328.0,5.89200838]
[1727974535387,4.29482,2328.4,2328.0,1.59649838]
[1727974535708,4.29482,2328.4,2328.0,5.89200838]
[1727974535915,4.29482,2328.4,2328.2,0.55]
[1727974536112,8.58971,2328.4,2328.2,0.55]
[1727974536488,4.29497,2328.3,2328.2,0.55]
[1727974536828,7.29409,2328.8,2328.2,0.55]
[1727974536997,4.29474,2328.5,2328.1,0.55]
[1727974537328,4.29483,2328.4,2328.1,0.55]
[1727974537991,4.29472,2328.5,2328.1,0.55]
[1727974538222,8.1043112,2328.8,2328.1,0.55]
[1727974538223,4.29444,2328.6,2328.1,0.55]
[1727974538422,4.29506,2328.3,2328.0,0.55]
[1727974538789,0.8102212,2328.8,2327.7,5.10418]
[1727974539029,8.59054,2328.2,2327.7,5.10405]
[1727974539212,4.29524,2328.2,2327.7,5.10405]
[1727974539396,4.29538,2328.1,2327.7,5.10405]
[1727974539602,4.29519,2328.2,2327.8,4.2959]
[1727974539818,4.29507,2328.3,2327.9,4.2957]
[1727974540553,4.29507,2328.3,2327.8,4.2959]
[1727974540696,4.29507,2328.3,2327.9,0.55]
[1727974540901,4.29518,2328.2,2327.9,0.55]
[1727974542098,4.29506,2328.3,2327.9,0.55]
[1727974542298,4.29516,2328.2,2327.9,0.55]
[1727974544025,4.29513,2328.3,2327.8,4.84583]
[1727974544201,4.29481,2328.4,2328.0,0.55]
[1727974544536,4.29499,2328.3,2328.0,0.55]
[1727974545205,4.29518,2328.2,2327.9,0.55]
[1727974545616,5.07542,2328.6,2327.7,0.8081]
[1727974545617,0.781,2328.6,2327.7,0.8081]
[1727974545918,3.8102212,2328.8,2327.3,11.35954662]
[1727974545919,4.29653,2327.5,2327.3,0.7855]
[1727974546105,4.29622,2327.7,2327.0,0.7728]
[1727974546106,4.29689,2327.3,2327.0,0.7728]
[1727974546452,4.29666,2327.4,2327.0,5.07006]
[1727974546750,4.29647,2327.5,2327.1,0.93675]
[1727974546939,4.29711,2327.2,2326.7,0.7728]
[1727974547141,0.8165,2327.6,2326.8,4.29766]
[1727974547142,4.2969,2327.3,2326.8,4.29766]
[1727974547443,4.29635,2327.6,2327.1,0.7728]
[1727974547751,0.8165,2327.9,2327.1,0.7728]
[1727974547897,0.8165,2327.9,2327.1,5.06997]
[1727974547898,4.29604,2327.8,2327.1,5.06997]
[1727974548114,4.29629,2327.6,2327.2,0.506997]
[1727974548429,4.29562,2328.0,2327.6,0.55]
[1727974548626,4.29562,2328.0,2327.6,1.3461]
[1727974548840,4.29572,2327.9,2327.6,1.3461]
[1727974549046,4.2959,2327.8,2327.6,1.3461]
[1727974549334,4.2959,2327.8,2327.6,1.910366]
[1727974549536,4.2959,2327.8,2327.6,1.3461]
[1727974550070,8.59198,2327.8,2327.6,1.3461]
[1727974550357,4.2959,2327.8,2327.6,1.3461]
[1727974550530,8.59192,2327.8,2327.6,1.3461]
[1727974550728,4.2959,2327.8,2327.6,0.55]
[1727974550951,4.29608,2327.7,2327.4,0.55]
[1727974551112,4.29608,2327.7,2327.5,0.55]
[1727974551518,4.29593,2327.8,2327.5,0.55]
[1727974552635,4.29573,2327.9,2327.5,0.55]
[1727974552816,4.29592,2327.8,2327.6,0.54069197]
[1727974553016,8.08497,2328.2,2327.5,0.55]
[1727974553325,4.29598,2327.8,2327.5,0.55]
[1727974553829,4.29609,2327.7,2327.5,0.55]
[1727974557931,4.29607,2327.8,2327.5,0.55]
[1727974558226,0.8247,2328.4,2327.7,0.55]
[1727974558461,4.29527,2328.2,2327.7,4.84596]
[1727974558629,8.59057,2328.2,2327.7,4.84596]
[1727974558964,8.59057,2328.2,2327.9,0.55]
[1727974558965,4.29538,2328.1,2327.9,0.55]
[1727974559528,8.59054,2328.2,2327.9,0.55]
[1727974559761,4.29541,2328.1,2327.9,0.55]
[1727974560769,4.29598,2327.8,2327.6,0.814]
[1727974561073,4.29598,2327.8,2327.6,0.55]
[1727974561074,4.29608,2327.7,2327.6,0.55]
[1727974561295,4.29541,2328.1,2327.4,8.274]
[1727974561296,4.29627,2327.6,2327.4,8.274]
[1727974561439,4.29627,2327.6,2326.8,6.47388711]
[1727974561440,4.2968,2327.4,2327.1,0.814]
[1727974561804,4.29721,2327.1,2326.8,0.8129]
[1727974562461,4.29684,2327.3,2326.8,5.11054]
[1727974562667,4.29684,2327.3,2326.9,4.808614]
[1727974563570,5.08147,2327.7,2327.2,4.29698]
[1727974563571,4.29636,2327.6,2327.2,4.29698]
[1727974563879,4.29636,2327.6,2327.3,0.55]
[1727974564231,4.29636,2327.6,2327.2,4.29698]
[1727974564232,4.29654,2327.5,2327.2,0.55]
[1727974565876,4.29664,2327.4,2327.2,0.55]
[1727974566171,0.7925,2327.9,2327.2,1.115992]
[1727974566467,4.29645,2327.6,2327.2,0.55]
[1727974566677,4.2963,2327.6,2327.2,4.84698]
[1727974567083,8.59275,2327.6,2327.2,4.84698]
[1727974567264,8.59275,2327.6,2327.2,5.412938]
[1727974567265,4.2963,2327.6,2327.2,5.412938]
[1727974567467,8.59266,2327.6,2327.2,5.412938]
[1727974567886,4.2963,2327.6,2327.2,5.412938]
[1727974568066,4.29607,2327.8,2327.2,1.115958]
[1727974568302,4.29591,2327.8,2327.6,0.55]
[1727974568610,4.29593,2327.8,2327.6,0.55]
[1727974569020,4.29576,2327.9,2327.6,0.55]
[1727974569506,5.10319,2328.2,2327.8,0.55]
[1727974569678,4.29546,2328.1,2327.8,0.55]
[1727974569882,4.2946,2328.6,2328.2,4.29514]
[1727974570084,8.58914,2328.6,2328.2,0.55]
[1727974570300,0.8209,2328.8,2328.2,0.55]
[1727974570474,4.29481,2328.4,2328.0,4.8455]
[1727974570672,4.29471,2328.5,2328.2,0.55]
[1727974570870,4.2945,2328.6,2328.2,0.55]
[1727974571187,4.29483,2328.4,2328.2,0.55]
[1727974571523,8.58977,2328.4,2328.2,0.55]
[1727974571715,4.29483,2328.4,2328.2,0.55]
[1727974571867,4.29458,2328.6,2328.2,4.84507]
[1727974572069,4.29426,2328.7,2328.4,0.55]
[1727974572305,8.58836,2328.8,2328.4,0.55]
[1727974572605,0.77,2329.1,2328.4,0.55]
[1727974572606,4.29461,2328.5,2328.4,0.55]
[1727974573215,4.29479,2328.4,2328.1,0.8037]
[1727974573375,4.29479,2328.4,2328.2,0.55]
[1727974573573,4.29497,2328.3,2328.2,0.55]
[1727974574105,4.29541,2328.1,2327.8,8.2637]
[1727974574530,8.5909,2328.1,2327.8,8.2637]
[1727974574849,4.2952,2328.2,2327.8,8.2637]
[1727974575018,4.29539,2328.1,2327.8,8.2637]
[1727974575207,4.29513,2328.3,2327.8,8.2637]
[1727974575407,5.06436,2328.7,2327.8,8.2637]
[1727974575408,4.29525,2328.2,2327.9,0.55]
[1727974575951,0.77,2328.7,2327.8,0.8037]
[1727974575952,4.29473,2328.5,2327.8,0.8037]
[1727974576122,4.29546,2328.1,2327.8,0.8037]
[1727974576746,8.59092,2328.1,2327.8,0.8037]
[1727974577050,4.29546,2328.1,2327.8,0.8037]
[1727974577651,4.29568,2328.0,2327.8,0.8037]
[1727974577820,4.29579,2327.9,2327.7,0.55]
[1727974578179,4.29579,2327.9,2327.4,0.89954662]
[1727974578180,4.29627,2327.6,2327.4,0.89954662]
[1727974578336,4.29645,2327.5,2327.3,0.89954662]
[1727974579228,4.29664,2327.4,2327.3,0.89954662]
[1727974579679,4.29664,2327.4,2327.2,0.89954662]
[1727974579680,4.29682,2327.3,2327.2,0.89954662]
[1727974579844,4.297,2327.2,2327.1,0.89954662]
[1727974580032,4.297,2327.2,2326.9,1.79909325]
[1727974580033,4.29719,2327.1,2326.9,1.79909325]
[1727974580548,4.29719,2327.1,2327.0,1.35070059]
[1727974580869,4.29719,2327.1,2326.9,1.35070059]
[1727974581035,4.29719,2327.1,2327.0,0.90052287]
[1727974581360,0.8169,2327.6,2327.0,2.38717226]
[1727974581566,4.29673,2327.4,2327.2,0.90059234]
[1727974582394,4.29643,2327.6,2327.3,1.73259234]
[1727974583094,4.29647,2327.5,2327.3,1.73259234]
[1727974583452,4.29647,2327.5,2327.3,0.832]
[1727974584387,8.59303,2327.5,2327.3,0.832]
[1727974584873,4.29647,2327.5,2327.2,0.55]
[1727974585077,8.59304,2327.5,2327.2,0.55]
[1727974585300,4.29682,2327.3,2327.2,0.55]
[1727974585952,4.29682,2327.3,2327.1,1.45059234]
[1727974586153,4.29682,2327.3,2327.1,2.19468203]
[1727974587201,4.29676,2327.4,2327.1,2.19468203]
[1727974587405,4.29683,2327.3,2327.1,2.19468203]
[1727974587607,4.297,2327.2,2327.1,0.90059234]
[1727974587892,4.297,2327.2,2327.0,0.90059234]
[1727974588105,4.297,2327.2,2327.1,0.90059234]
[1727974588708,4.297,2327.2,2327.0,1.35070059]
[1727974588709,4.297,2327.2,2327.0,0.90059234]
[1727974588863,8.59413,2327.2,2327.0,0.90059234]
[1727974589366,4.29686,2327.3,2327.0,0.90059234]
[1727974589572,4.29719,2327.1,2327.0,0.90059234]
[1727974589771,0.8134,2327.5,2326.9,0.90059234]
[1727974590100,4.29715,2327.2,2326.9,0.90059234]
[1727974590310,4.29737,2327.0,2326.9,0.90059234]
[1727974590599,4.29774,2326.8,2326.7,0.90059234]
[1727974590992,4.29774,2326.8,2326.6,0.90059234]
[1727974591296,4.29741,2327.0,2326.6,5.19863234]
[1727974591512,0.8296,2327.2,2326.7,1.65529234]
[1727974591513,5.12662,2327.2,2326.7,1.65529234]
[1727974591662,4.29664,2327.4,2327.0,4.29733]
[1727974591864,4.29664,2327.4,2327.0,0.94953523]
[1727974592096,4.29689,2327.3,2327.0,0.94953523]
[1727974592292,4.29689,2327.3,2327.1,0.55]
[1727974592674,4.29672,2327.4,2327.1,0.55]
[1727974593001,4.29672,2327.4,2327.2,0.8112]
[1727974593454,4.29682,2327.3,2327.2,0.8112]
[1727974593639,4.2964,2327.6,2327.2,0.55]
[1727974593821,4.29579,2327.9,2327.4,4.84651]
[1727974594306,5.0966,2328.1,2327.6,0.55]
[1727974594307,4.29553,2328.0,2327.6,0.55]
[1727974594653,4.29584,2327.9,2327.6,0.55]
[1727974595154,4.29572,2327.9,2327.5,4.84644]
[1727974595305,4.2959,2327.8,2327.5,0.55]
[1727974595509,4.29568,2328.0,2327.5,1.1642518]
[1727974595732,4.2959,2327.8,2327.5,1.1642518]
[1727974596455,4.29563,2328.0,2327.5,5.4606118]
[1727974596664,8.59127,2328.0,2327.5,5.4606118]
[1727974596813,4.29563,2328.0,2327.6,0.97572218]
[1727974597146,4.724363,2328.4,2327.9,0.55]
[1727974597147,4.29528,2328.2,2327.9,0.55]
[1727974597452,0.7876,2328.6,2327.9,0.55]
[1727974597662,4.29452,2328.6,2328.2,4.29508]
[1727974597952,8.58907,2328.6,2328.3,0.55]
[1727974598145,4.29462,2328.5,2328.2,0.55]
[1727974598349,4.29452,2328.6,2328.2,5.90147067]
[1727974598643,4.29461,2328.5,2328.2,1.60632067]
[1727974598886,4.29452,2328.6,2328.2,1.60632067]
[1727974599153,7.4077129,2329.1,2328.2,1.60632067]
[1727974599154,4.29426,2328.7,2328.4,1.3303]
[1727974599355,4.29383,2329.0,2328.7,0.55]
[1727974599504,2.66923106,2329.1,2328.7,0.55]
[1727974599707,4.29342,2329.2,2328.5,0.562518]
[1727974599708,2.66923106,2329.2,2328.9,0.55]
[1727974600213,4.29332,2329.2,2328.9,0.55]
[1727974600410,6.96236106,2329.3,2328.9,0.55]
[1727974600715,4.29315,2329.3,2328.9,4.84385]
[1727974600918,4.29315,2329.3,2328.9,1.541805]
[1727974601361,4.29324,2329.3,2328.9,1.541805]
[1727974601652,4.29339,2329.2,2328.9,1.541805]
[1727974602426,4.29358,2329.1,2328.9,0.55]
[1727974602631,4.29367,2329.1,2328.9,0.55]
[1727974603051,4.29368,2329.0,2328.9,0.55]
[1727974603551,4.29368,2329.0,2328.6,0.55]
[1727974603756,4.29368,2329.0,2328.6,1.1717818]
[1727974604261,4.29398,2328.9,2328.6,0.55]
[1727974604506,4.29368,2329.0,2328.6,0.55]
[1727974604668,0.8052,2329.2,2328.5,0.8107]
[1727974604825,4.29414,2328.8,2328.5,0.8107]
[1727974605232,4.29389,2328.9,2328.5,5.1053]
[1727974605532,5.0755,2329.5,2328.9,4.29379]
[1727974605746,2.66923106,2329.6,2328.6,0.81053]
[1727974605747,2.66923106,2329.6,2329.2,4.29323]
[1727974606067,4.29217,2329.9,2329.5,5.65283]
[1727974606068,2.66923106,2329.9,2329.5,5.65283]
[1727974606241,2.66923106,2329.9,2329.7,0.55]
[1727974606684,7.4058529,2330.1,2329.7,0.55]
[1727974606685,2.66923106,2330.1,2329.9,0.55]
[1727974607166,4.29159,2330.2,2329.7,5.286776]
[1727974607167,2.66923106,2330.2,2329.8,4.84221]
[1727974607377,4.29167,2330.1,2329.8,0.55]
[1727974608131,6.96072106,2330.2,2329.8,0.55]
[1727974608343,6.95377856,2330.3,2329.8,0.55]
[1727974608634,4.29167,2330.1,2329.8,0.55]
[1727974608841,2.66243856,2330.2,2330.0,4.8418]
[1727974609076,2.66243856,2330.3,2330.0,4.8418]
[1727974609373,2.66243856,2330.4,2330.2,4.84139]
[1727974609573,4.0712352,2330.6,2330.2,4.84139]
[1727974609574,2.66243856,2330.5,2330.4,0.55]
[1727974610490,2.66243856,2330.5,2330.4,4.8411]
[1727974610787,3.62749544,2330.6,2330.4,4.8411]
[1727974610987,2.66243856,2330.6,2330.4,4.8411]
[1727974611141,2.66243856,2330.7,2330.4,4.8411]
[1727974611341,2.66243856,2330.7,2330.5,0.56525]
[1727974611537,2.65991408,2330.7,2330.6,0.55]
[1727974612037,7.3934531,2330.9,2330.6,0.55]
[1727974612038,3.1032331,2330.8,2330.6,0.55]
[1727974612182,2.65800042,2330.7,2330.6,0.55]
[1727974612359,2.65800042,2330.7,2330.6,1.09062]
[1727974612685,4.29002,2331.0,2330.6,1.09062]
[1727974612686,7.3932531,2331.0,2330.6,1.09062]
[1727974612980,4.29002,2331.0,2330.6,1.09062]
[1727974613395,4.29002,2331.0,2330.6,1.13415693]
[1727974613744,7.95183417,2331.4,2330.9,4.84003]
[1727974613745,3.10056649,2331.2,2330.9,4.84003]
[1727974613949,3.10056649,2331.3,2331.1,4.83982]
[1727974614188,3.10056649,2331.4,2331.3,0.55]
[1727974614374,3.10056649,2331.5,2331.4,4.83926]
[1727974614691,4.28844,2331.9,2331.6,0.55]
[1727974614692,3.10056649,2331.7,2331.6,0.55]
[1727974615189,4.28871,2331.7,2331.4,0.616516]
[1727974615347,7.38923649,2331.8,2331.4,0.616516]
[1727974615544,3.10056649,2331.7,2331.4,0.616516]
[1727974616283,7.38910649,2331.8,2331.4,0.616516]
[1727974616486,3.10056649,2331.8,2331.6,0.55]
[1727974616688,3.10056649,2331.8,2331.7,1.3116]
[1727974617195,3.10056649,2331.9,2331.7,1.3116]
[1727974617395,3.09458859,2331.9,2331.8,4.83853]
[1727974617801,3.09458859,2332.0,2331.9,4.28834]
[1727974618099,3.09458859,2332.1,2332.0,4.83816]
[1727974618324,0.1079128,2332.2,2332.1,4.83798]
[1727974620469,0.1079128,2332.2,2332.1,0.55]
[1727974620782,0.1079128,2332.2,2332.1,4.83798]
[1727974623685,0.1079128,2332.2,2332.1,10.76464717]
[1727974623891,0.1079128,2332.2,2332.1,15.85044926]
[1727974624103,4.4398215,2333.6,2333.1,4.28612]
[1727974624104,4.28537,2333.6,2333.1,4.28612]
[1727974624315,4.28537,2333.6,2333.2,0.55]
[1727974624542,4.28505,2333.7,2333.2,0.55]
[1727974624682,4.4398215,2334.0,2333.4,4.2855]
[1727974624886,4.28469,2333.9,2333.4,1.26565]
[1727974625114,0.8184,2334.1,2333.1,0.7821]
[1727974625314,4.28557,2333.5,2333.1,0.7821]
[1727974625621,4.2858,2333.3,2333.1,0.7821]
[1727974625786,0.8184,2333.6,2332.8,16.87108717]
[1727974625787,4.28605,2333.2,2332.8,8.2421]
[1727974625982,4.28605,2333.2,2332.8,0.7821]
[1727974626184,4.28657,2332.9,2332.6,0.7821]
[1727974626417,4.69114071,2333.9,2332.6,4.28691]
[1727974626418,4.28626,2333.1,2332.6,4.28691]
[1727974626600,4.28589,2333.3,2332.5,5.12456717]
[1727974626803,4.2856,2333.4,2332.9,4.28649]
[1727974627065,3.8184,2333.6,2332.6,5.06902]
[1727974627066,4.28604,2333.2,2332.6,5.06902]
[1727974627243,4.28604,2333.2,2332.3,7.46]
[1727974627244,0.8184,2333.0,2332.3,0.7821]
[1727974627386,4.28672,2332.8,2332.3,0.7821]
[1727974627592,4.287,2332.7,2332.3,0.7821]
[1727974628124,0.8184,2333.0,2332.1,1.65540209]
[1727974628286,4.28679,2332.8,2332.0,0.7821]
[1727974628486,4.28707,2332.6,2332.0,5.07011]
[1727974628724,8.57422,2332.6,2332.1,4.28791]
[1727974629031,4.28707,2332.6,2332.0,5.07024]
[1727974629337,4.28681,2332.8,2332.3,4.2876]
[1727974629531,4.28688,2332.7,2332.2,4.28762]
[1727974629735,4.28688,2332.7,2332.1,5.30735072]
[1727974629736,4.28717,2332.6,2332.1,5.30735072]
[1727974629889,4.28717,2332.6,2332.2,0.60894507]
[1727974630090,4.28746,2332.4,2332.2,0.60894507]
[1727974630308,4.28751,2332.4,2332.1,1.01948072]
[1727974630624,0.814,2332.4,2331.7,5.07609]
[1727974630930,8.57506,2332.4,2331.9,4.28834]
[1727974631134,4.28733,2332.5,2331.9,4.28822]
[1727974631422,4.28707,2332.6,2332.2,4.28778]
[1727974631723,4.28707,2332.6,2332.2,0.751]
[1727974631724,4.28723,2332.6,2332.2,0.751]
[1727974631929,0.7849,2332.9,2332.0,0.428822]
[1727974632086,4.28777,2332.3,2331.8,5.0395]
[1727974632294,4.28753,2332.4,2331.9,4.28824]
[1727974632814,4.28764,2332.3,2331.8,0.751]
[1727974633022,4.28782,2332.2,2331.8,1.254974]
[1727974633182,4.28764,2332.3,2331.8,1.254974]
[1727974633387,4.28809,2332.1,2331.8,1.254974]
[1727974633619,4.28775,2332.3,2331.8,1.254974]
[1727974633620,4.28781,2332.2,2331.8,5.543464]
[1727974633819,4.28808,2332.1,2331.8,1.254974]
[1727974634325,4.28781,2332.2,2331.8,1.254974]
[1727974634527,4.28781,2332.2,2331.9,0.5543684]
[1727974634918,5.0724,2332.4,2331.9,0.5543684]
[1727974635122,4.2875,2332.4,2332.0,4.28808]
[1727974635344,4.2875,2332.4,2331.9,4.8426884]
[1727974635345,4.28762,2332.3,2331.9,4.8426884]
[1727974635551,4.28788,2332.2,2331.9,0.5543684]
[1727974635757,4.28798,2332.1,2331.7,4.83871]
[1727974636129,4.28826,2332.0,2331.7,0.55]
[1727974636365,4.28849,2331.9,2331.6,0.7695]
[1727974636518,4.28854,2331.8,2331.4,4.28917]
[1727974636713,4.28849,2331.9,2331.4,4.28917]
[1727974636714,4.28844,2331.9,2331.5,1.255997]
[1727974636942,8.57695,2331.9,2331.5,1.255997]
[1727974637144,8.57695,2331.9,2331.4,4.28917]
[1727974637145,4.28844,2331.9,2331.4,8.5783]
[1727974637417,4.28844,2331.9,2331.4,4.28913]
[1727974637617,8.57693,2331.9,2331.4,4.28913]
[1727974637924,4.28877,2331.7,2331.3,0.8108]
[1727974638227,4.289,2331.6,2331.3,0.8108]
[1727974638543,4.28935,2331.4,2330.9,11.75006]
[1727974638744,4.28934,2331.4,2330.9,7.46]
[1727974638915,4.28921,2331.5,2331.0,1.257556]
[1727974638916,4.28922,2331.5,2331.0,1.257556]
[1727974639119,4.28945,2331.3,2331.0,1.257556]
[1727974639379,4.28959,2331.3,2330.9,7.46]
[1727974639651,4.2899,2331.1,2330.9,7.46]
[1727974639868,4.28965,2331.2,2330.8,0.8253]
[1727974640220,5.0579,2331.3,2330.9,0.511572]
[1727974640464,4.28982,2331.1,2330.8,0.8253]
[1727974641156,4.29006,2331.0,2330.5,1.1494026]
[1727974641463,4.28989,2331.1,2330.6,4.29071]
[1727974641669,4.28989,2331.1,2330.7,4.83452126]
[1727974642018,5.05783,2331.3,2330.8,4.29029]
[1727974642220,12.29,2332.4,2330.8,4.29029]
[1727974642221,0.7679,2331.6,2331.0,0.7895]
[1727974642458,4.28953,2331.3,2331.1,0.3850026]
[1727974642615,4.28921,2331.5,2331.0,1.1745026]
[1727974642965,4.28952,2331.3,2331.1,0.38587722]
[1727974643117,4.28963,2331.2,2330.8,4.67622722]
[1727974643317,4.28963,2331.2,2330.9,0.38587722]
[1727974643523,4.28982,2331.1,2331.0,0.38587722]
[1727974643768,4.28963,2331.2,2331.0,0.38587722]
[1727974643951,4.28963,2331.2,2331.1,0.38587722]
[1727974646143,4.28963,2331.2,2330.5,3.0]
[1727974646144,4.29038,2330.8,2330.5,0.55]
[1727974646364,5.09253,2331.1,2330.6,0.3868912]
[1727974646575,4.29032,2330.9,2330.7,0.3868912]
[1727974646779,0.509253,2331.0,2330.2,0.90059234]
[1727974646960,0.509253,2331.0,2330.3,0.38717719]
[1727974646961,4.2911,2330.4,2330.3,0.38717719]
[1727974647682,4.29106,2330.5,2330.3,0.38717719]
[1727974647838,4.29106,2330.5,2330.4,0.38717719]
[1727974649254,4.29106,2330.5,2330.4,0.90059234]
[1727974649458,4.29106,2330.5,2330.4,1.28823357]
[1727974649654,4.29062,2330.7,2330.4,1.73203631]
[1727974649856,5.11555,2330.9,2330.5,1.28823357]
[1727974649857,4.29039,2330.8,2330.5,1.28823357]
[1727974650187,4.29026,2330.9,2330.6,1.83823357]
[1727974650339,4.29026,2330.9,2330.7,0.38764123]
[1727974650539,4.29026,2330.9,2330.8,0.38764123]
[1727974650741,5.973488,2330.9,2330.8,0.38764123]
[1727974651160,8.973488,2330.9,2330.8,0.38764123]
[1727974651574,8.11546,2330.9,2330.8,0.38764123]